bitfinex/quotes_ETHUSD_20250529
["timestamp","ask_amount","ask_price","bid_price","bid_amount"]
[1748486255338,2.194,2767.3,2767.2,11.6137612]
[1748486256663,2.194,2767.3,2766.6,1.5331]
[1748486256664,5.80763061,2767.3,2766.6,1.5331]
[1748486256961,2.194,2767.3,2766.5,8.0]
[1748486257865,2.194,2767.3,2767.2,3.6137612]
[1748486258964,2.194,2767.3,2767.2,11.6137612]
[1748486260381,2.194,2767.3,2767.2,8.0]
[1748486260590,2.194,2767.3,2767.2,11.6137612]
[1748486260878,2.194,2767.3,2766.8,5.493]
[1748486260879,2.194,2767.3,2767.0,3.61390617]
[1748486261080,2.194,2767.3,2767.0,3.61391307]
[1748486261285,2.194,2767.3,2767.2,3.6137612]
[1748486261501,1.4523,2767.8,2766.7,11.71432261]
[1748486261700,1.4523,2767.8,2766.7,0.1]
[1748486261701,5.0653707,2767.8,2766.7,0.1]
[1748486261874,2.31333388,2767.8,2766.8,3.61428364]
[1748486262069,2.31333388,2767.8,2767.1,3.61386517]
[1748486262070,3.61323506,2767.7,2767.1,3.61386517]
[1748486262269,5.92633243,2767.8,2767.1,3.61386517]
[1748486262471,5.9263644,2767.8,2767.2,3.61375824]
[1748486262679,3.61313858,2767.7,2767.1,3.61385262]
[1748486262986,2.31333388,2767.8,2767.1,8.0]
[1748486263170,2.31333388,2767.8,2766.7,0.1]
[1748486263369,3.61318191,2767.7,2767.1,3.61379752]
[1748486263568,3.61318191,2767.7,2766.7,8.1]
[1748486263569,1.36085158,2767.7,2766.9,3.61412013]
[1748486263892,3.61340675,2767.5,2766.9,11.61415302]
[1748486264305,4.97400204,2767.7,2767.1,3.61381262]
[1748486264503,2.31333388,2767.8,2767.3,3.61361034]
[1748486264702,1.4523,2767.8,2767.3,3.61361034]
[1748486264873,1.4523,2767.8,2767.5,3.61335704]
[1748486265077,2.193,2767.7,2767.5,3.61335704]
[1748486265272,1.4523,2767.8,2767.4,3.61346082]
[1748486265477,5.06536581,2767.8,2767.2,3.61374945]
[1748486265695,5.06535083,2767.8,2767.2,3.61374945]
[1748486265886,5.06535083,2767.8,2767.2,3.6137612]
[1748486266088,5.06535083,2767.8,2766.7,0.1]
[1748486266089,8.02341005,2767.8,2766.7,0.1]
[1748486266417,3.61325058,2767.6,2766.7,0.1]
[1748486266582,11.63646614,2767.8,2766.7,0.1]
[1748486266583,3.61344788,2767.5,2766.7,0.1]
[1748486266780,1.38294661,2767.7,2766.9,8.0]
[1748486267022,10.54934582,2767.8,2767.2,3.61368768]
[1748486267192,6.9363,2767.8,2767.4,3.61344207]
[1748486267520,6.9363,2767.8,2766.7,0.1]
[1748486267521,3.6453,2767.8,2767.0,11.61398228]
[1748486267818,7.25828592,2767.8,2767.2,8.0]
[1748486268020,7.25828581,2767.8,2767.2,11.61369821]
[1748486268184,3.6453,2767.8,2767.2,3.61367526]
[1748486268382,7.25835826,2767.8,2767.3,8.0]
[1748486269107,0.01777245,2767.7,2767.3,8.0]
[1748486269301,0.01777245,2767.7,2767.3,11.61359692]
[1748486269532,0.01777245,2767.7,2767.0,3.6140224]
[1748486269745,0.01777245,2767.7,2767.5,3.6132852]
[1748486269948,0.01777245,2767.7,2767.4,3.61347208]
[1748486270264,0.01777245,2767.7,2767.3,3.61355154]
[1748486270605,0.01777245,2767.7,2767.4,3.61343094]
[1748486270804,0.01777245,2767.7,2767.3,3.61358488]
[1748486271015,0.01777245,2767.7,2766.9,8.0]
[1748486271308,0.01777245,2767.7,2767.4,3.61348308]
[1748486272421,0.01777245,2767.7,2767.3,11.61359619]
[1748486272617,0.01777245,2767.7,2767.4,3.61341863]
[1748486273265,0.01777245,2767.7,2767.3,11.61358976]
[1748486273431,0.01777245,2767.7,2767.4,3.61346564]
[1748486273621,0.01777245,2767.7,2767.3,11.61356854]
[1748486274032,4.35552669,2767.7,2766.9,3.61403204]
[1748486274225,3.61358743,2767.4,2766.8,3.61420968]
[1748486274540,3.61330128,2767.6,2767.0,3.61395374]
[1748486274761,3.61350174,2767.4,2766.9,8.0]
[1748486274925,5.471,2767.5,2766.8,3.61425105]
[1748486275273,3.61340018,2767.5,2766.7,0.1]
[1748486275477,3.61350069,2767.4,2766.9,8.0]
[1748486275679,4.19405451,2767.6,2767.0,11.61394626]
[1748486275840,0.7423659,2767.7,2767.1,3.61387538]
[1748486276028,3.61325032,2767.6,2767.0,11.61394454]
[1748486276367,2.18077245,2767.7,2766.7,0.1]
[1748486276611,3.61365663,2767.3,2766.8,8.0]
[1748486276737,3.61367198,2767.3,2766.7,3.71434306]
[1748486276938,5.468,2767.5,2766.8,3.61427475]
[1748486277139,5.468,2767.5,2767.0,3.61399419]
[1748486277448,9.08139077,2767.5,2766.9,3.61410106]
[1748486277652,3.61351739,2767.4,2766.8,3.61427457]
[1748486278162,3.61365262,2767.3,2766.7,0.1]
[1748486278468,3.6137612,2767.2,2766.7,0.1]
[1748486278761,3.61376893,2767.2,2766.7,0.1]
[1748486278966,3.61377639,2767.2,2766.7,8.1]
[1748486279538,3.61395506,2767.1,2766.7,0.1]
[1748486279739,3.61378688,2767.2,2766.7,0.1]
[1748486279940,2.18077245,2767.7,2766.7,0.1]
[1748486279941,1.5122,2766.9,2766.7,0.1]
[1748486280154,2.163,2767.0,2766.8,3.61419314]
[1748486280385,2.163,2767.0,2765.9,3.61542097]
[1748486280386,2.163,2767.0,2765.7,8.0]
[1748486280557,2.163,2767.0,2766.5,3.61459272]
[1748486280863,2.163,2767.0,2766.5,8.0]
[1748486281163,2.163,2767.0,2765.9,8.0]
[1748486281376,3.28698575,2767.0,2765.8,8.0]
[1748486281667,3.28698575,2767.0,2765.7,0.30183411]
[1748486281668,1.5515,2766.9,2765.7,0.30183411]
[1748486282040,1.5515,2766.9,2765.0,3.61663652]
[1748486282041,3.61494665,2766.3,2765.0,3.61663652]
[1748486282238,3.61529147,2766.1,2765.5,3.61596351]
[1748486282438,9.07510642,2766.2,2764.9,0.30385692]
[1748486282439,5.46,2766.0,2764.9,3.92061673]
[1748486282831,5.46,2766.0,2765.0,8.0]
[1748486283036,5.46,2766.0,2765.5,8.0]
[1748486283238,9.07533109,2766.0,2765.5,8.0]
[1748486283443,3.6155483,2765.9,2765.2,3.61627169]
[1748486283638,10.56816347,2766.0,2764.0,1.73886849]
[1748486283639,7.86033311,2766.0,2764.3,5.458]
[1748486283852,7.86033311,2766.0,2764.4,3.6174215]
[1748486284054,0.78603331,2765.9,2764.9,3.61675745]
[1748486284271,3.61578689,2765.7,2764.2,3.61768323]
[1748486284461,2.163,2765.6,2765.0,3.61651726]
[1748486284663,5.456,2765.5,2765.1,3.61643406]
[1748486284902,5.456,2765.5,2765.0,3.61651726]
[1748486285089,2.163,2765.6,2764.2,3.61768323]
[1748486285090,2.163,2765.6,2765.5,3.61598264]
[1748486285446,2.163,2765.6,2765.5,8.0]
[1748486286347,1.4972,2766.5,2766.2,3.6150676]
[1748486286556,2.163,2766.8,2766.3,8.0]
[1748486286875,2.163,2766.8,2766.4,3.61472568]
[1748486287280,2.163,2766.8,2765.9,8.0]
[1748486287593,2.163,2766.8,2765.8,3.61551173]
[1748486287594,2.163,2766.8,2766.4,3.61475525]
[1748486287804,2.163,2766.8,2766.2,8.0]
[1748486288101,2.163,2766.8,2765.4,8.518]
[1748486288393,2.163,2766.8,2766.2,8.0]
[1748486288394,6.68878985,2766.8,2766.2,8.0]
[1748486288752,6.68878985,2766.8,2766.0,3.61529497]
[1748486288753,3.61454839,2766.6,2766.0,3.61529497]
[1748486288974,9.06476556,2766.5,2766.0,8.0]
[1748486289187,9.06476556,2766.5,2765.6,3.61577261]
[1748486289188,3.61512826,2766.2,2765.6,3.61577261]
[1748486289389,3.61496772,2766.3,2765.7,3.61568472]
[1748486289693,5.10765251,2766.4,2765.8,3.61556948]
[1748486289889,5.449,2766.2,2765.8,3.61556948]
[1748486290199,5.449,2766.2,2765.7,11.51566383]
[1748486290355,5.449,2766.2,2765.6,8.0]
[1748486290356,3.61522518,2766.1,2765.6,8.0]
[1748486290706,6.86616004,2766.2,2765.7,8.0]
[1748486290707,5.449,2766.2,2765.7,8.0]
[1748486290919,5.10765661,2766.4,2765.3,8.0]
[1748486290920,5.447,2766.1,2765.3,8.0]
[1748486291193,5.447,2766.1,2765.2,3.61627698]
[1748486291194,5.447,2766.1,2765.1,8.0]
[1748486291402,5.447,2766.1,2765.6,3.61575345]
[1748486291691,5.447,2766.1,2765.1,3.61646952]
[1748486291692,5.447,2766.1,2766.0,3.61532899]
[1748486291894,5.446,2766.1,2766.0,3.61532899]
[1748486292257,5.446,2766.1,2765.9,3.61540266]
[1748486292457,5.446,2766.1,2765.0,4.13356799]
[1748486292653,5.446,2766.1,2765.6,3.61577436]
[1748486292867,5.446,2766.1,2765.7,3.61570044]
[1748486293072,5.446,2766.1,2765.7,8.0]
[1748486293388,5.446,2766.1,2765.6,3.61576926]
[1748486293389,9.06120602,2766.1,2765.5,3.61597701]
[1748486293594,5.446,2766.1,2765.6,11.61583541]
[1748486293953,3.61540655,2766.0,2765.6,8.0]
[1748486294190,5.446,2766.1,2765.2,3.61634572]
[1748486294392,5.446,2766.1,2765.7,3.61563867]
[1748486294563,5.446,2766.1,2765.3,8.0]
[1748486295080,5.446,2766.1,2765.7,3.61564281]
[1748486295287,3.61497332,2766.3,2765.6,3.61585189]
[1748486295288,5.441,2766.0,2765.6,3.61585189]
[1748486295472,5.441,2766.0,2765.7,11.61569038]
[1748486295854,5.441,2766.0,2765.7,11.6156963]
[1748486296078,5.441,2766.0,2765.7,8.0]
[1748486296580,5.441,2766.0,2765.7,3.51570674]
[1748486296911,6.68875339,2766.8,2765.8,0.03615806]
[1748486296912,2.163,2766.8,2765.8,0.03615806]
[1748486297202,5.438,2766.7,2766.2,3.61497701]
[1748486297703,5.438,2766.7,2766.0,3.61522525]
[1748486297704,5.437,2766.6,2766.3,3.61482946]
[1748486297910,5.436,2766.5,2766.3,3.61482946]
[1748486298855,5.436,2766.5,2766.2,3.61503337]
[1748486299259,5.436,2766.5,2766.3,3.6149047]
[1748486299463,2.163,2766.8,2766.4,3.61478658]
[1748486299697,2.163,2766.8,2766.6,3.61448887]
[1748486300076,2.163,2766.8,2766.5,3.61459728]
[1748486300282,2.163,2766.8,2766.7,11.61441428]
[1748486301282,1.5444,2767.3,2766.9,3.61406652]
[1748486301488,1.5444,2767.3,2767.1,3.61386905]
[1748486301689,2.127,2767.5,2767.4,3.61350003]
[1748486302300,2.127,2767.5,2767.4,11.61350003]
[1748486304224,0.01777245,2767.7,2767.6,3.6132389]
[1748486304582,0.01777245,2767.7,2767.6,11.6132389]
[1748486304883,0.01777245,2767.7,2767.6,12.1302389]
[1748486306410,2.126,2769.3,2768.6,3.61185399]
[1748486306599,7.546,2769.3,2767.9,8.0]
[1748486306793,7.546,2769.3,2768.7,8.0]
[1748486306794,2.126,2769.3,2768.7,8.0]
[1748486306996,9.03031025,2769.1,2768.4,8.0]
[1748486307198,9.03031025,2769.1,2768.6,8.0]
[1748486307199,3.61128164,2769.1,2768.6,8.0]
[1748486307512,3.61106026,2769.3,2768.6,8.0]
[1748486307513,5.419,2769.0,2768.6,8.0]
[1748486307711,5.419,2769.0,2767.9,3.61284728]
[1748486307712,5.419,2769.0,2768.4,11.61213937]
[1748486308066,5.419,2769.0,2768.4,8.0]
[1748486308333,5.419,2769.0,2768.4,3.61216499]
[1748486308488,5.419,2769.0,2768.3,8.0]
[1748486308694,5.419,2769.0,2768.5,8.0]
[1748486308894,11.41216439,2769.2,2767.8,1.73720656]
[1748486308895,5.415,2768.9,2767.8,9.73720656]
[1748486309114,7.801,2769.2,2768.6,3.61191431]
[1748486309318,7.801,2769.2,2768.4,3.61217701]
[1748486309319,5.414,2769.1,2767.8,9.73720656]
[1748486309488,5.414,2769.1,2768.5,3.6119825]
[1748486309693,5.414,2769.1,2768.4,3.61216248]
[1748486309915,5.414,2769.1,2768.2,8.0]
[1748486310092,9.02532733,2769.1,2768.3,3.61225064]
[1748486310304,9.02532733,2769.1,2768.4,8.0]
[1748486310698,3.61217447,2768.5,2767.7,8.0]
[1748486310892,3.61217447,2768.5,2767.2,11.61372432]
[1748486310893,5.412,2768.5,2767.8,3.61287443]
[1748486311414,5.412,2768.5,2767.9,8.0]
[1748486311594,5.412,2768.5,2767.4,3.61349458]
[1748486311595,3.61258216,2768.2,2767.4,3.61349458]
[1748486311790,1.4831,2768.9,2767.0,0.517]
[1748486311791,5.409,2768.1,2767.0,2.25420656]
[1748486312036,5.409,2768.0,2767.9,3.61283392]
[1748486312206,5.409,2768.0,2767.8,3.61293004]
[1748486312405,5.408,2768.2,2767.9,8.0]
[1748486312590,5.408,2768.2,2767.9,11.6128136]
[1748486312809,5.408,2768.2,2767.7,3.61301656]
[1748486312990,3.61268565,2768.1,2767.3,3.61353406]
[1748486313190,3.61268565,2768.1,2767.0,0.517]
[1748486313191,3.61328706,2767.6,2767.0,0.517]
[1748486313431,3.61328706,2767.6,2765.9,5.35369003]
[1748486313432,5.407,2767.5,2766.5,0.517]
[1748486313595,1.05213856,2768.1,2766.5,0.517]
[1748486313795,7.532,2768.0,2766.6,3.61454492]
[1748486313995,7.532,2768.0,2767.6,3.61313672]
[1748486313996,5.406,2767.9,2767.6,3.61313672]
[1748486314196,5.406,2767.9,2767.7,11.61308432]
[1748486314413,3.61297781,2767.8,2766.2,3.61498717]
[1748486314650,3.61297781,2767.8,2765.6,5.21161968]
[1748486314651,1.11449778,2767.8,2766.4,1.73720656]
[1748486314955,1.11449778,2767.8,2765.7,5.35505912]
[1748486314956,3.61350003,2767.4,2766.2,3.61497857]
[1748486315113,3.61417455,2766.9,2766.2,3.61498651]
[1748486315315,3.61417455,2766.9,2766.0,3.61521893]
[1748486315316,3.61442152,2766.7,2766.0,3.61521893]
[1748486315546,5.404,2766.8,2765.6,0.517]
[1748486315747,5.404,2766.8,2766.4,8.0]
[1748486316355,5.404,2766.8,2765.8,3.61553673]
[1748486316532,5.404,2766.8,2766.2,3.61495727]
[1748486316856,5.404,2766.8,2766.2,3.61495543]
[1748486317055,5.404,2766.8,2765.6,0.517]
[1748486317056,3.61441428,2766.7,2766.0,3.61528518]
[1748486317259,1.4841,2766.6,2766.0,3.61528518]
[1748486317422,1.4841,2766.6,2766.1,11.61519471]
[1748486317745,1.4841,2766.6,2766.3,8.0]
[1748486318120,1.4841,2766.6,2766.1,3.61515172]
[1748486321137,5.395,2766.5,2766.1,11.61514832]
[1748486321335,5.395,2766.5,2765.3,3.6161801]
[1748486321336,6.44435322,2766.5,2765.2,0.5277]
[1748486321537,3.61502943,2766.3,2765.2,4.1440012]
[1748486321862,10.05905792,2766.5,2765.2,4.1440012]
[1748486321863,3.61529657,2766.1,2765.3,3.61624416]
[1748486322066,3.61568367,2765.8,2765.1,3.61637516]
[1748486322266,5.393,2765.7,2764.7,3.6169901]
[1748486322569,5.393,2765.7,2764.4,0.5277]
[1748486322570,6.08056,2765.7,2764.5,3.61729064]
[1748486322727,3.61625569,2765.3,2764.6,3.6171147]
[1748486322928,3.61625569,2765.3,2764.7,3.61702796]
[1748486322929,5.392,2765.2,2764.7,3.61702796]
[1748486323128,9.00844891,2765.2,2764.3,3.61751837]
[1748486323425,5.392,2765.2,2764.3,8.0]
[1748486323663,0.36162557,2765.3,2764.7,8.0]
[1748486323864,5.39,2765.2,2765.1,8.0]
[1748486324022,5.391,2765.2,2765.0,3.61658508]
[1748486324228,5.391,2765.2,2764.1,1.73720656]
[1748486324229,2.127,2765.6,2765.4,8.0]
[1748486324445,2.127,2765.6,2764.6,1.73720656]
[1748486324446,2.127,2765.6,2765.5,11.61598264]
[1748486324651,2.127,2765.6,2765.5,8.0]
[1748486325379,1.4826,2765.8,2765.5,11.61598264]
[1748486325595,1.4826,2765.8,2765.7,3.61572115]
[1748486325891,5.388,2765.9,2765.7,3.61572115]
[1748486325892,5.388,2765.9,2765.8,11.61559042]
[1748486326391,9.0242,2766.0,2765.9,3.6154597]
[1748486326686,5.386,2766.5,2766.4,3.61479946]
[1748486327459,2.127,2766.7,2766.4,3.61479946]
[1748486327460,2.127,2766.7,2766.6,3.61454492]
[1748486327653,7.512,2766.7,2766.6,11.61454492]
[1748486327978,7.512,2766.7,2766.6,8.0]
[1748486328168,7.512,2766.7,2766.3,3.61493088]
[1748486328489,7.512,2766.7,2766.5,8.0]
[1748486328689,8.2632,2766.7,2766.3,8.0]
[1748486328879,8.2632,2766.7,2766.3,3.61493012]
[1748486329078,7.512,2766.7,2766.5,3.61459661]
[1748486329252,7.512,2766.7,2766.5,11.61457585]
[1748486329472,7.512,2766.7,2766.6,3.61454492]
[1748486330811,2.127,2766.7,2766.6,3.61454492]
[1748486330986,2.127,2766.7,2766.6,11.61454492]
[1748486330987,7.506,2766.7,2766.6,11.61454492]
[1748486331491,2.127,2766.7,2766.6,11.61454492]
[1748486331891,7.504,2766.7,2766.6,11.61454492]
[1748486332092,7.504,2766.7,2766.6,8.0]
[1748486332600,7.504,2766.7,2766.6,11.61454492]
[1748486332803,7.504,2766.7,2766.6,8.0]
[1748486333202,7.504,2766.7,2766.5,8.0]
[1748486333203,8.2544,2766.7,2766.5,8.0]
[1748486333403,7.504,2766.7,2766.6,3.61454492]
[1748486333594,7.504,2766.7,2766.5,3.61462036]
[1748486333997,5.373,2766.6,2766.5,11.61462036]
[1748486334727,1.5102,2767.2,2766.5,8.0]
[1748486335021,2.088,2766.7,2766.5,8.0]
[1748486335318,2.088,2766.7,2765.5,0.5277]
[1748486335319,1.4355,2766.5,2765.5,4.14356774]
[1748486335528,3.6148936,2766.4,2765.8,3.61550492]
[1748486335693,1.4355,2766.5,2765.3,3.61620664]
[1748486335694,5.37,2766.3,2765.3,3.61624416]
[1748486335897,5.37,2766.3,2766.2,3.6150676]
[1748486336218,7.457,2766.3,2766.2,3.6150676]
[1748486337018,7.457,2766.3,2766.1,3.61514584]
[1748486337320,7.457,2766.3,2765.8,8.0]
[1748486337493,7.457,2766.3,2766.2,3.6150676]
[1748486337680,7.457,2766.3,2765.8,8.0]
[1748486337878,7.457,2766.3,2766.2,3.6150676]
[1748486338083,2.088,2766.3,2766.2,3.6150676]
[1748486338490,7.453,2766.3,2766.2,11.6150676]
[1748486339117,2.088,2766.6,2766.5,3.61467558]
[1748486339294,7.452,2766.6,2766.5,3.61467558]
[1748486339940,2.088,2766.6,2766.5,3.61467558]
[1748486340137,7.45,2766.6,2766.2,8.0]
[1748486340361,1.4214,2766.5,2765.1,8.5277]
[1748486340517,1.4214,2766.5,2766.2,3.61498147]
[1748486340718,1.4214,2766.5,2766.2,3.61501528]
[1748486341039,1.4214,2766.5,2766.4,3.61480624]
[1748486341217,6.7824,2766.5,2766.4,3.61480624]
[1748486341414,6.7814,2766.5,2766.4,3.61480624]
[1748486341628,2.088,2766.7,2766.6,3.61454492]
[1748486341944,3.61306563,2767.8,2766.6,3.61454492]
[1748486341945,2.088,2767.6,2766.8,3.61428364]
[1748486342140,2.088,2767.6,2767.4,3.61350003]
[1748486342141,5.359,2767.5,2767.4,3.61350003]
[1748486342441,2.088,2767.6,2767.5,3.61336946]
[1748486342644,2.088,2767.6,2766.7,0.5277]
[1748486342829,1.5053,2767.4,2766.6,3.61447243]
[1748486343030,1.5053,2767.4,2766.1,4.14286029]
[1748486343034,1.5053,2767.4,2766.4,8.0]
[1748486343232,3.61266017,2768.1,2767.5,3.61329601]
[1748486343233,3.5933,2768.0,2767.5,3.61329601]
[1748486343411,3.5933,2768.0,2766.2,1.74067533]
[1748486343412,0.72059149,2767.9,2766.7,3.61441428]
[1748486343745,3.5933,2768.0,2767.8,3.61297094]
[1748486343929,3.5933,2768.0,2766.9,0.5277]
[1748486343930,3.5933,2768.0,2767.9,3.61284728]
[1748486344247,8.9483,2768.0,2767.9,3.61284728]
[1748486344642,8.9483,2768.0,2767.2,3.61368096]
[1748486344844,3.5933,2768.0,2767.3,3.61363061]
[1748486345046,3.5933,2768.0,2767.8,3.61297781]
[1748486345047,5.353,2767.9,2767.8,3.61297781]
[1748486345438,3.61210751,2768.5,2767.8,3.61297781]
[1748486345439,1.4886,2768.4,2768.3,3.61232525]
[1748486345651,8.9276,2768.4,2768.3,3.61232525]
[1748486346152,2.087,2768.7,2768.4,3.61209468]
[1748486346353,1.4886,2768.8,2768.7,3.61180337]
[1748486346555,6.8386,2768.8,2768.7,3.61180337]
[1748486346713,5.35,2768.8,2768.7,3.61180337]
[1748486347254,7.801,2768.9,2768.8,3.61167292]
[1748486347411,7.801,2768.9,2768.8,11.61167292]
[1748486349151,7.801,2768.9,2768.8,8.0]
[1748486349369,9.3246,2768.9,2768.8,8.0]
[1748486349665,9.3246,2768.9,2768.7,8.0]
[1748486349813,5.343,2768.8,2768.7,8.0]
[1748486350014,5.343,2768.8,2768.7,3.61180337]
[1748486350250,9.3246,2768.9,2768.8,3.61167292]
[1748486350251,7.801,2768.9,2768.8,3.61167292]
[1748486350567,7.801,2768.9,2768.8,11.61167292]
[1748486350860,13.142,2768.9,2768.8,11.61167292]
[1748486351159,7.801,2768.9,2768.8,11.61167292]
[1748486351359,7.801,2768.9,2768.8,12.14047292]
[1748486351729,2.087,2769.5,2769.4,3.61089044]
[1748486351936,7.425,2769.5,2769.4,11.61089044]
[1748486352139,7.424,2769.5,2769.4,11.61089044]
[1748486352565,7.424,2769.5,2768.5,11.61206429]
[1748486352566,8.1664,2769.5,2768.5,11.61206429]
[1748486352771,3.61158524,2768.9,2768.2,3.61235393]
[1748486352966,3.61158524,2768.9,2768.0,3.61261243]
[1748486352967,1.526,2768.7,2767.6,4.14198776]
[1748486353167,1.526,2768.7,2767.6,0.5288]
[1748486353168,6.38336954,2768.6,2767.6,0.5288]
[1748486353331,5.335,2768.6,2767.8,3.61297781]
[1748486353532,5.335,2768.6,2768.5,3.61206429]
[1748486354366,5.335,2768.6,2767.5,3.6132659]
[1748486354587,5.335,2768.6,2768.1,8.0]
[1748486354793,6.22966831,2768.6,2768.1,8.0]
[1748486355092,1.5512,2768.5,2767.7,3.61306832]
[1748486355393,1.5512,2768.5,2767.9,8.0]
[1748486355715,1.5512,2768.5,2767.8,8.0]
[1748486355914,0.68862,2768.4,2767.8,3.61296674]
[1748486356050,4.30082897,2768.4,2767.7,3.61307464]
[1748486356245,5.33,2768.3,2767.7,3.61307464]
[1748486356503,5.33,2768.3,2767.5,3.61333185]
[1748486356504,3.61247113,2768.2,2767.5,3.61333185]
[1748486356672,5.33,2768.3,2767.5,8.0]
[1748486356874,5.33,2768.3,2768.0,8.0]
[1748486357065,5.33,2768.3,2767.9,8.0]
[1748486357583,1.5512,2768.5,2767.0,8.5288]
[1748486357765,5.327,2768.4,2768.0,3.61264251]
[1748486357946,1.5512,2768.5,2768.1,3.61257914]
[1748486358153,5.326,2768.4,2768.3,8.0]
[1748486358355,6.22232,2768.4,2767.5,3.61326544]
[1748486358579,3.61317971,2767.7,2767.1,3.61379959]
[1748486358777,3.61317971,2767.7,2766.8,3.61428364]
[1748486358778,5.325,2767.6,2766.8,3.61428364]
[1748486358977,5.325,2767.6,2766.7,0.5288]
[1748486359189,5.325,2767.6,2765.9,3.6154019]
[1748486359190,6.01262,2767.6,2766.1,3.61519829]
[1748486359524,1.5512,2766.9,2766.2,0.30177955]
[1748486359693,1.5512,2766.9,2766.3,3.61493623]
[1748486359694,7.368,2766.8,2766.3,3.61493623]
[1748486359867,10.98233113,2766.8,2766.3,8.0]
[1748486360067,10.98233113,2766.8,2766.4,0.30175773]
[1748486360695,7.368,2766.8,2766.3,3.61491708]
[1748486361093,8.62134019,2766.8,2765.6,0.5288]
[1748486361294,8.62134019,2766.8,2763.6,1.83678612]
[1748486361295,3.61454492,2766.6,2765.4,3.61602397]
[1748486361467,1.4361,2766.0,2764.5,5.8488]
[1748486361655,5.32,2765.9,2765.3,3.6161602]
[1748486361853,5.32,2765.9,2764.5,5.8488]
[1748486362093,5.32,2765.9,2765.4,3.6161123]
[1748486362293,5.32,2765.9,2765.6,3.61585033]
[1748486362668,5.32,2765.9,2765.6,3.61583978]
[1748486362996,5.319,2766.5,2766.3,3.61493691]
[1748486363160,5.319,2766.5,2766.3,8.0]
[1748486363375,5.319,2766.5,2766.1,11.61513587]
[1748486363870,5.319,2766.5,2765.9,3.61544161]
[1748486363871,5.319,2766.5,2765.8,3.61558861]
[1748486364193,5.319,2766.5,2765.3,4.14496]
[1748486364194,6.71787298,2766.5,2765.3,0.5288]
[1748486364392,6.53787298,2766.5,2766.0,8.0]
[1748486364595,6.53787298,2766.5,2765.8,11.61554957]
[1748486364808,10.15263354,2766.5,2765.8,11.61554957]
[1748486365175,5.139,2766.5,2766.1,8.0]
[1748486365812,5.139,2766.5,2765.9,8.0]
[1748486365970,3.61488379,2766.4,2765.9,8.0]
[1748486366172,5.08447149,2766.2,2765.6,3.61582643]
[1748486366372,5.08447149,2766.2,2765.7,11.61567683]
[1748486366373,5.313,2766.1,2765.7,11.61567683]
[1748486366706,5.313,2766.1,2765.3,8.0]
[1748486366869,1.4694,2766.2,2765.9,8.0]
[1748486367073,1.4694,2766.2,2765.8,8.0]
[1748486367074,7.358,2766.1,2765.8,8.0]
[1748486367311,7.358,2766.1,2765.2,3.61635233]
[1748486367312,7.358,2766.1,2765.4,8.0]
[1748486367480,7.358,2766.1,2764.9,0.5288]
[1748486367481,7.358,2766.1,2765.9,8.0]
[1748486367867,7.358,2766.1,2765.8,3.61549358]
[1748486367868,10.97321367,2766.1,2765.5,3.61593724]
[1748486368069,10.97321367,2766.1,2765.7,3.61570178]
[1748486368070,8.96375691,2766.1,2765.7,3.61570178]
[1748486368613,7.358,2766.1,2765.6,11.615807]
[1748486368907,3.61544561,2766.0,2765.5,8.0]
[1748486369208,7.358,2766.1,2765.5,8.0]
[1748486369209,10.9732337,2766.1,2765.5,11.61588213]
[1748486369413,7.358,2766.1,2765.6,3.61580823]
[1748486369612,7.358,2766.1,2764.9,0.5288]
[1748486369613,8.60225017,2766.1,2764.5,0.5288]
[1748486369773,3.61611487,2765.4,2764.8,3.61686907]
[1748486369972,6.7278,2765.3,2764.8,3.61689814]
[1748486370212,5.307,2765.2,2764.8,3.61689814]
[1748486370506,5.307,2765.2,2765.1,3.61650573]
[1748486370938,5.307,2765.2,2765.0,3.61657634]
[1748486371113,5.307,2765.2,2764.2,3.61768323]
[1748486371308,5.307,2765.2,2765.0,3.61656169]
[1748486371510,5.307,2765.2,2765.0,8.0]
[1748486371820,5.307,2765.2,2764.6,3.6171598]
[1748486372141,5.307,2765.2,2763.9,3.61805434]
[1748486372311,5.307,2765.2,2764.9,8.0]
[1748486372515,5.307,2765.2,2764.9,3.61674144]
[1748486372726,5.307,2765.2,2764.8,8.0]
[1748486373032,5.307,2765.2,2765.0,3.61662036]
[1748486373237,5.307,2765.2,2765.1,3.61650573]
[1748486373537,1.4208,2765.3,2764.7,8.0]
[1748486373728,5.301,2765.2,2765.1,3.61650573]
[1748486374743,1.4208,2765.3,2765.2,3.61637494]
[1748486375043,6.90557223,2766.1,2765.2,3.61637494]
[1748486375044,2.046,2766.1,2766.0,3.61532899]
[1748486375213,2.35364224,2766.1,2766.0,11.61532899]
[1748486376499,7.342,2766.1,2766.0,11.61532899]
[1748486376725,2.046,2766.1,2766.0,11.61532899]
[1748486378045,7.798,2766.7,2766.6,3.61454492]
[1748486378198,17.01306744,2766.7,2766.1,11.61511222]
[1748486378415,17.01306744,2766.7,2765.6,8.0]
[1748486378416,2.05804674,2766.6,2765.6,8.0]
[1748486378712,13.39864224,2766.7,2765.8,8.0]
[1748486379065,3.61467558,2766.5,2765.8,3.61558504]
[1748486379215,3.61467558,2766.5,2765.4,4.144847]
[1748486379216,5.291,2766.6,2766.1,3.61517175]
[1748486379563,5.291,2766.6,2765.6,8.0]
[1748486379564,8.90565205,2766.6,2765.6,8.0]
[1748486379760,3.61493691,2766.3,2765.6,3.61577523]
[1748486380057,8.90513019,2766.2,2765.7,8.0]
[1748486380252,8.90513019,2766.2,2765.0,0.5617]
[1748486380253,5.29,2766.2,2765.5,3.61591821]